[Event "FIDE WSTC Open 65 2025"]
[Site "Prague"]
[Date "2025.02.17"]
[Round "1.26"]
[White "Heim, Sverre"]
[Black "Ashby, Anthony C"]
[Result "1-0"]
[Annotator "ChessBase"]
[ECO "A96"]
[WhiteElo "2312"]
[BlackElo "2049"]
[PlyCount "85"]
[EventDate "2025.02.17"]
[EventType "team-tourn"]
[EventCountry "CZE"]
[SourceTitle "playchess.com"]
[Source "ChessBase"]
[SourceQuality "1"]
[TimeControl "40/5400+30:1800+30"]

1. Nf3 {[%emt 0:00:09]} f5 {[%emt 0:00:42]} 2. g3 {[%emt 0:00:21]} Nf6 {[%emt 0:00:14]} 3. Bg2 {[%emt 0:00:24]} e6 {[%emt 0:00:47]} 4. O-O {[%emt 0:00:23]} Be7 {[%emt 0:00:31]} 5. c4 {[%emt 0:00:58]} O-O {[%emt 0:00:25]} 6. d4 {[%emt 0:00:30]} d6 {[%emt 0:01:34]} 7. Nc3 {[%emt 0:00:44]} Nc6 {[%emt 0:03:26]} 8. d5 {[%emt 0:04:25]} Ne5 {[%emt 0:05:16]} 9. Nd4 {[%emt 0:10:59]} Nxc4 {[%emt 0:12:17]} 10. dxe6 {[%emt 0:00:08]} c5 {[%emt 0:02:14]} 11. Nxf5 {[%emt 0:00:19]} Bxe6 {[%emt 0:00:11]} 12. Nxe7+ {[%emt 0:06:28]} Qxe7 {[%emt 0:00:09]} 13. b3 {[%emt 0:02:02]} Ne5 {[%emt 0:01:20]} 14. Bg5 {[%emt 0:01:54]} h6 {[%emt 0:08:44]} 15. Nd5 {[%emt 0:01:57]} Bxd5 {[%emt 0:01:17]} 16. Bxd5+ {[%emt 0:01:03]} Kh8 {[%emt 0:00:11]} 17. Bxf6 {[%emt 0:01:59]} Rxf6 {[%emt 0:00:11]} 18. Qd2 {[%emt 0:01:08]} Raf8 {[%emt 0:03:20]} 19. h3 {[%emt 0:01:35]} Nc6 {[%emt 0:03:01]} 20. e3 {[%emt 0:04:19]} Qd7 {[%emt 0:03:22]} 21. Bg2 {[%emt 0:00:29]} Ne5 {[%emt 0:00:30]} 22. f4 {[%emt 0:04:38]} Nc6 {[%emt 0:02:25]} 23. Rad1 {[%emt 0:02:11]} Re8 {[%emt 0:00:30]} 24. Rfe1 {[%emt 0:00:20]} Qf7 {[%emt 0:01:20]} 25. g4 {[%emt 0:03:05]} Rd8 {[%emt 0:06:54]} 26. h4 {[%emt 0:07:58]} Qe7 {[%emt 0:02:17]} 27. g5 {[%emt 0:00:31]} Rff8 {[%emt 0:01:45]} 28. Qc3 {[%emt 0:05:44]} Qe6 {[%emt 0:03:30]} 29. Kh2 {[%emt 0:07:25]} Ne7 {[%emt 0:06:59]} 30. Bh3 {[%emt 0:05:13]} Qg6 {[%emt 0:00:23]} 31. Kg3 {[%emt 0:02:38]} Nf5+ {[%emt 0:03:36]} 32. Bxf5 {[%emt 0:00:11]} Qxf5 {[%emt 0:00:19]} 33. Qd3 {[%emt 0:00:25]} Qe6 {[%emt 0:05:35]} 34. Qd5 {[%emt 0:02:11]} Qd7 {[%emt 0:02:06]} 35. e4 {[%emt 0:02:35]} Qe7 {[%emt 0:02:38]} 36. e5 {[%emt 0:06:51]} dxe5 37. Qxe5 {[%emt 0:00:11]} Qxe5 {[%emt 0:04:43]} 38. fxe5 {[%emt 0:00:08]} hxg5 {[%emt 0:02:47]} 39. hxg5 {[%emt 0:00:37]} Kh7 {[%emt 0:06:08]} 40. Rxd8 Rxd8 {[%emt 0:00:06]} 41. e6 {[%emt 0:33:07]} Kg6 {[%emt 0:30:42]} 42. Kf4 {[%emt 0:00:09]} Re8 {[%emt 0:02:02]} 43. Ke5 {[%emt 0:00:52]} 1-0

[Event "FIDE WSTC Open 65 2025"]
[Site "Prague"]
[Date "2025.02.17"]
[Round "1.27"]
[White "Spanton, Tim R"]
[Black "Moen, Ole Christian"]
[Result "1/2-1/2"]
[Annotator "ChessBase"]
[ECO "C68"]
[WhiteElo "1896"]
[BlackElo "2201"]
[PlyCount "112"]
[EventDate "2025.02.17"]
[EventType "team-tourn"]
[EventCountry "CZE"]
[SourceTitle "playchess.com"]
[Source "ChessBase"]
[SourceQuality "1"]
[TimeControl "40/5400+30:1800+30"]

1. e4 {[%emt 0:00:03]} e5 {[%emt 0:00:08]} 2. Nf3 {[%emt 0:00:04]} Nc6 {[%emt 0:00:05]} 3. Bb5 {[%emt 0:00:03]} a6 {[%emt 0:00:06]} 4. Bxc6 {[%emt 0:00:04]} dxc6 {[%emt 0:00:10]} 5. d4 {[%emt 0:00:04]} exd4 {[%emt 0:00:09]} 6. Qxd4 {[%emt 0:00:04]} Qxd4 {[%emt 0:00:12]} 7. Nxd4 {[%emt 0:00:04]} Bd6 {[%emt 0:00:50]} 8. Be3 {[%emt 0:00:59]} Ne7 {[%emt 0:00:22]} 9. Nc3 {[%emt 0:01:40]} O-O {[%emt 0:00:53]} 10. O-O-O {[%emt 0:00:48]} f6 {[%emt 0:06:02]} 11. h3 {[%emt 0:02:49]} c5 {[%emt 0:04:37]} 12. Nde2 {[%emt 0:02:07]} b6 {[%emt 0:02:01]} 13. Bf4 {[%emt 0:06:55]} Be5 {[%emt 0:03:28]} 14. Bxe5 {[%emt 0:00:32]} fxe5 {[%emt 0:00:09]} 15. f3 {[%emt 0:00:12]} Be6 {[%emt 0:02:25]} 16. Nd5 {[%emt 0:00:41]} Bxd5 {[%emt 0:00:40]} 17. exd5 {[%emt 0:00:07]} Rad8 {[%emt 0:00:17]} 18. c4 {[%emt 0:01:08]} Nf5 {[%emt 0:03:17]} 19. b3 {[%emt 0:04:38]} Ne3 {[%emt 0:03:52]} 20. Rdg1 {[%emt 0:00:11]} b5 {[%emt 0:00:53]} 21. Kd2 {[%emt 0:00:29]} Nf5 {[%emt 0:00:14]} 22. Kc3 {[%emt 0:00:41]} b4+ {[%emt 0:12:51]} 23. Kc2 {[%emt 0:01:51]} Rf6 {[%emt 0:02:19]} 24. Kc1 {[%emt 0:01:17]} c6 {[%emt 0:01:41]} 25. dxc6 {[%emt 0:00:47]} Rxc6 {[%emt 0:00:17]} 26. Rd1 {[%emt 0:01:58]} Rcd6 {[%emt 0:01:18]} 27. Rxd6 {[%emt 0:01:25]} Rxd6 {[%emt 0:00:07]} 28. Re1 {[%emt 0:00:28]} Nh4 {[%emt 0:04:43]} 29. Ng1 {[%emt 0:01:33]} Nxg2 {[%emt 0:01:06]} 30. Rxe5 {[%emt 0:00:16]} Nf4 {[%emt 0:00:40]} 31. Kc2 {[%emt 0:02:26]} Rg6 {[%emt 0:06:36]} 32. Ne2 {[%emt 0:03:31]} Rg2 {[%emt 0:01:31]} 33. Kd2 {[%emt 0:00:56]} Nxh3 {[%emt 0:00:24]} 34. Ke3 {[%emt 0:02:32]} Rg5 {[%emt 0:03:09]} 35. Rxg5 {[%emt 0:00:52]} Nxg5 {[%emt 0:00:11]} 36. Kf4 {[%emt 0:00:23]} Ne6+ {[%emt 0:00:56]} 37. Ke5 {[%emt 0:00:31]} Kf7 {[%emt 0:01:00]} 38. Ng3 {[%emt 0:00:55]} g6 {[%emt 0:04:39]} 39. f4 {[%emt 0:02:11]} a5 {[%emt 0:04:11]} 40. f5 {[%emt 0:00:40]} gxf5 {[%emt 0:00:31]} 41. Nxf5 {[%emt 0:30:36]} h5 {[%emt 0:30:45]} 42. Nd6+ {[%emt 0:01:58]} Ke7 {[%emt 0:01:47]} 43. Nf5+ {[%emt 0:00:22]} Kd7 {[%emt 0:00:11]} 44. Kd5 {[%emt 0:01:07]} Nf4+ {[%emt 0:25:33]} 45. Kxc5 {[%emt 0:00:49]} Nd3+ {[%emt 0:00:00]} 46. Kb5 {[%emt 0:00:00]} Nc1 {[%emt 0:00:00]} 47. Kxa5 {[%emt 0:00:00]} Nxa2 {[%emt 0:00:00]} 48. Kb5 {[%emt 0:00:00]} Kc7 {[%emt 0:00:00]} 49. Kc5 {[%emt 0:00:00]} Kb7 {[%emt 0:00:00]} 50. Kd6 {[%emt 0:00:00]} Nc3 {[%emt 0:00:00]} 51. c5 {[%emt 0:00:00]} Ne4+ {[%emt 0:00:00]} 52. Kd5 {[%emt 0:00:00]} Nd2 {[%emt 0:00:00]} 53. Nd6+ {[%emt 0:00:00]} Kb8 {[%emt 0:00:00]} 54. c6 {[%emt 0:00:00]} Nxb3 {[%emt 0:00:00]} 55. Kc4 {[%emt 0:00:00]} Kc7 {[%emt 0:00:00]} 56. Nf5 {[%emt 0:00:00]} Kxc6 {[%emt 0:00:00]} 1/2-1/2

[Event "FIDE WSTC Open 65 2025"]
[Site "Prague"]
[Date "2025.02.17"]
[Round "1.28"]
[White "Bjerke, Richard"]
[Black "Higgie, Charles L"]
[Result "1/2-1/2"]
[Annotator "NA"]
[ECO "E66"]
[WhiteElo "2037"]
[BlackElo "1945"]
[PlyCount "102"]
[EventDate "2025.02.17"]
[EventType "team-tourn"]
[EventCountry "CZE"]
[SourceTitle "playchess.com"]
[Source "ChessBase"]
[SourceQuality "1"]
[TimeControl "40/5400+30:1800+30"]

1. Nf3 {[%emt 0:00:09]} Nf6 {[%emt 0:00:24]} 2. c4 {[%emt 0:00:18]} g6 {[%emt 0:00:13]} 3. Nc3 {[%emt 0:01:34]} c5 {[%emt 0:02:08]} 4. g3 {[%emt 0:01:04]} Nc6 {[%emt 0:00:23]} 5. Bg2 {[%emt 0:00:29]} Bg7 {[%emt 0:00:03]} 6. O-O {[%emt 0:00:14]} O-O {[%emt 0:00:07]} 7. d4 {[%emt 0:01:03]} d6 {[%emt 0:07:30]} 8. d5 {[%emt 0:02:20]} Na5 {[%emt 0:00:41]} 9. Nd2 {[%emt 0:01:59]} Bd7 {[%emt 0:01:58]} 10. Qc2 {[%emt 0:09:01]} a6 {[%emt 0:01:19]} 11. b3 {[%emt 0:00:56]} b5 {[%emt 0:01:52]} 12. Bb2 {[%emt 0:00:30]} Rb8 {[%emt 0:03:50]} 13. Rab1 {[%emt 0:01:18]} Qc7 {[%emt 0:01:39]} 14. h3 {[%emt 0:03:12]} Rb6 {[%emt 0:01:58]} 15. Ba1 {[%emt 0:06:03]} Rfb8 {[%emt 0:04:23]} 16. e3 {[%emt 0:04:19]} R8b7 {[%emt 0:01:54]} 17. Ne2 {[%emt 0:01:46]} Qc8 {[%emt 0:02:23]} 18. Kh2 {[%emt 0:00:40]} Qb8 {[%emt 0:00:53]} 19. Bc3 {[%emt 0:02:19]} b4 {[%emt 0:02:31]} 20. Ba1 {[%emt 0:00:12]} Ra7 {[%emt 0:01:51]} 21. f4 {[%emt 0:03:14]} Nb7 {[%emt 0:02:34]} 22. e4 {[%emt 0:01:18]} a5 {[%emt 0:02:14]} 23. Rbe1 {[%emt 0:09:12]} a4 {[%emt 0:02:41]} 24. e5 {[%emt 0:01:30]} axb3 {[%emt 0:01:18]} 25. axb3 {[%emt 0:00:22]} Bf5 {[%emt 0:03:29]} 26. Ne4 {[%emt 0:03:03]} Nxe4 {[%emt 0:04:18]} 27. Bxe4 {[%emt 0:00:17]} Bxe4 {[%emt 0:00:29]} 28. Qxe4 {[%emt 0:00:17]} Rba6 {[%emt 0:00:42]} 29. f5 {[%emt 0:02:02]} dxe5 {[%emt 0:01:41]} 30. Ng1 {[%emt 0:05:37]} Ra2+ {[%emt 0:17:21]} 31. Kh1 {[%emt 0:01:20]} gxf5 {[%emt 0:06:01]} 32. Qxf5 {[%emt 0:02:17]} f6 {[%emt 0:02:58]} 33. Qe6+ {[%emt 0:06:04]} Kh8 {[%emt 0:00:18]} 34. Nf3 {[%emt 0:02:29]} Nd6 {[%emt 0:01:58]} 35. Bxe5 {[%emt 0:08:07]} fxe5 {[%emt 0:03:13]} 36. Nxe5 {[%emt 0:00:57]} Qg8 {[%emt 0:02:08]} 37. Qxg8+ Kxg8 {[%emt 0:00:11]} 38. Nc6 {[%emt 0:02:47]} Rd7 {[%emt 0:09:10]} 39. Nxe7+ {[%emt 0:04:01]} Kh8 {[%emt 0:00:07]} 40. Nf5 {[%emt 0:04:43]} Bf8 {[%emt 0:02:35]} 41. Re6 {[%emt 0:33:39]} Nxf5 42. Rxf5 {[%emt 0:00:00]} Bd6 {[%emt 0:09:19]} 43. g4 {[%emt 0:00:00]} Rh2+ {[%emt 0:00:45]} 44. Kg1 {[%emt 0:00:00]} Rxh3 {[%emt 0:00:09]} 45. Rff6 {[%emt 0:00:00]} Bc7 {[%emt 0:02:53]} 46. d6 {[%emt 0:00:00]} Bd8 {[%emt 0:01:12]} 47. Rf8+ {[%emt 0:00:00]} Kg7 {[%emt 0:00:09]} 48. Ree8 {[%emt 0:00:00]} Bf6 {[%emt 0:01:41]} 49. Rg8+ {[%emt 0:00:00]} Kf7 {[%emt 0:03:27]} 50. Rgf8+ {[%emt 0:00:00]} Kg6 {[%emt 0:00:26]} 51. Re6 {[%emt 0:00:00]} Rf7 {[%emt 0:05:37]} 1/2-1/2

[Event "FIDE WSTC Open 65 2025"]
[Site "Prague"]
[Date "2025.02.17"]
[Round "1.29"]
[White "Littlewood, Paul E"]
[Black "Holst, Per"]
[Result "1-0"]
[Annotator "ChessBase"]
[ECO "E24"]
[WhiteElo "2309"]
[BlackElo "2037"]
[PlyCount "81"]
[EventDate "2025.02.17"]
[EventType "team-tourn"]
[EventCountry "CZE"]
[SourceTitle "playchess.com"]
[Source "ChessBase"]
[SourceQuality "1"]
[TimeControl "40/5400+30:1800+30"]

1. d4 {[%emt 0:00:04]} e6 {[%emt 0:00:08]} 2. c4 {[%emt 0:00:33]} Nf6 {[%emt 0:00:08]} 3. Nc3 {[%emt 0:00:33]} Bb4 {[%emt 0:00:10]} 4. a3 {[%emt 0:00:56]} Bxc3+ {[%emt 0:00:15]} 5. bxc3 {[%emt 0:00:05]} Nc6 {[%emt 0:00:59]} 6. f3 {[%emt 0:07:46]} b6 {[%emt 0:03:50]} 7. e4 {[%emt 0:03:01]} d6 {[%emt 0:02:40]} 8. Bd3 {[%emt 0:05:38]} Qd7 {[%emt 0:02:39]} 9. Ne2 {[%emt 0:10:17]} Ba6 {[%emt 0:00:56]} 10. f4 {[%emt 0:06:43]} O-O-O {[%emt 0:04:27]} 11. O-O {[%emt 0:01:14]} Na5 {[%emt 0:03:01]} 12. e5 {[%emt 0:02:15]} Ne8 {[%emt 0:02:25]} 13. Ng3 {[%emt 0:03:59]} f5 {[%emt 0:05:43]} 14. exf6 {[%emt 0:04:47]} Nxf6 {[%emt 0:02:45]} 15. f5 {[%emt 0:00:42]} e5 {[%emt 0:02:26]} 16. c5 {[%emt 0:02:05]} Bxd3 {[%emt 0:09:34]} 17. Qxd3 {[%emt 0:00:08]} exd4 {[%emt 0:02:19]} 18. cxb6 {[%emt 0:00:50]} cxb6 {[%emt 0:12:58]} 19. cxd4 {[%emt 0:00:24]} d5 {[%emt 0:02:24]} 20. Bf4 {[%emt 0:04:12]} Kb7 {[%emt 0:00:47]} 21. Be5 {[%emt 0:03:27]} Nc4 {[%emt 0:04:44]} 22. Bxf6 {[%emt 0:04:38]} gxf6 {[%emt 0:00:13]} 23. Nh5 {[%emt 0:00:15]} Qd6 {[%emt 0:05:47]} 24. Nf4 {[%emt 0:00:46]} Rd7 {[%emt 0:01:12]} 25. Ne6 {[%emt 0:01:25]} Rg8 {[%emt 0:00:47]} 26. a4 {[%emt 0:00:55]} a6 {[%emt 0:00:38]} 27. Rae1 {[%emt 0:08:28]} Qa3 {[%emt 0:04:46]} 28. Qxa3 {[%emt 0:01:08]} Nxa3 {[%emt 0:00:11]} 29. a5 {[%emt 0:00:29]} Rd6 {[%emt 0:03:37]} 30. Rf3 {[%emt 0:01:37]} Nb5 {[%emt 0:02:45]} 31. Rh3 {[%emt 0:01:25]} Rd7 {[%emt 0:00:40]} 32. axb6 {[%emt 0:00:44]} Kxb6 {[%emt 0:00:29]} 33. Rh6 {[%emt 0:04:14]} Rf7 {[%emt 0:03:36]} 34. Rc1 {[%emt 0:02:10]} Rg4 {[%emt 0:03:20]} 35. h3 {[%emt 0:01:13]} Rg3 {[%emt 0:00:51]} 36. Kh2 {[%emt 0:00:56]} Rd3 {[%emt 0:00:24]} 37. Ng5 {[%emt 0:04:12]} Rc7 {[%emt 0:04:55]} 38. Rxf6+ {[%emt 0:00:37]} Kb7 {[%emt 0:00:09]} 39. Rxc7+ {[%emt 0:00:19]} Nxc7 {[%emt 0:00:15]} 40. Rf7 {[%emt 0:01:50]} Kc6 {[%emt 0:04:13]} 41. Rxh7 {[%emt 0:34:26]} 1-0

[Event "FIDE WSTC Open 65 2025"]
[Site "Prague"]
[Date "2025.02.17"]
[Round "1.30"]
[White "Jorgensen, Arne Bjorn"]
[Black "Stebbings, Anthony J"]
[Result "1/2-1/2"]
[Annotator "ChessBase"]
[ECO "E14"]
[WhiteElo "1950"]
[BlackElo "2239"]
[PlyCount "65"]
[EventDate "2025.02.17"]
[EventType "team-tourn"]
[EventCountry "CZE"]
[SourceTitle "playchess.com"]
[Source "ChessBase"]
[SourceQuality "1"]
[TimeControl "40/5400+30:1800+30"]

1. d4 {[%emt 0:00:04]} Nf6 {[%emt 0:00:04]} 2. Nf3 {[%emt 0:00:04]} e6 {[%emt 0:00:07]} 3. c4 {[%emt 0:00:08]} b6 {[%emt 0:00:36]} 4. e3 {[%emt 0:00:53]} Bb7 {[%emt 0:00:24]} 5. Be2 {[%emt 0:00:06]} d5 {[%emt 0:04:55]} 6. cxd5 {[%emt 0:01:31]} exd5 {[%emt 0:00:05]} 7. O-O {[%emt 0:00:17]} Bd6 {[%emt 0:00:35]} 8. Nc3 {[%emt 0:00:32]} a6 {[%emt 0:00:11]} 9. a3 {[%emt 0:03:55]} Nbd7 {[%emt 0:00:55]} 10. b4 {[%emt 0:00:55]} O-O {[%emt 0:03:28]} 11. Bb2 {[%emt 0:01:09]} Qe7 {[%emt 0:01:28]} 12. h3 {[%emt 0:02:45]} Ne4 {[%emt 0:07:00]} 13. Qb3 {[%emt 0:04:27]} Ndf6 {[%emt 0:03:11]} 14. Rad1 {[%emt 0:02:34]} Nxc3 {[%emt 0:11:08]} 15. Bxc3 {[%emt 0:00:42]} Ne4 {[%emt 0:02:03]} 16. Bb2 {[%emt 0:07:00]} Rae8 {[%emt 0:03:31]} 17. Ne5 {[%emt 0:05:09]} f6 {[%emt 0:10:19]} 18. Ng4 {[%emt 0:03:22]} c6 {[%emt 0:05:19]} 19. Bf3 {[%emt 0:02:37]} Ng5 {[%emt 0:02:47]} 20. Be2 {[%emt 0:02:07]} Bb8 {[%emt 0:02:03]} 21. f4 {[%emt 0:10:11]} Ne4 {[%emt 0:01:36]} 22. Bf3 {[%emt 0:00:44]} Nd6 {[%emt 0:01:27]} 23. Rfe1 {[%emt 0:04:12]} Kh8 {[%emt 0:00:07]} 24. Bc1 {[%emt 0:02:08]} Bc8 {[%emt 0:05:34]} 25. Qc3 {[%emt 0:04:51]} Qc7 {[%emt 0:02:46]} 26. Re2 {[%emt 0:04:50]} Bf5 {[%emt 0:00:24]} 27. Nf2 {[%emt 0:01:05]} Re7 {[%emt 0:06:55]} 28. Rde1 {[%emt 0:01:03]} Ne4 {[%emt 0:03:37]} 29. Bxe4 {[%emt 0:03:07]} Bxe4 {[%emt 0:00:43]} 30. Nxe4 {[%emt 0:01:14]} Rxe4 {[%emt 0:00:22]} 31. Rc2 {[%emt 0:01:00]} Rc8 {[%emt 0:00:24]} 32. Bd2 {[%emt 0:01:33]} Qd7 {[%emt 0:06:56]} 33. Rec1 {[%emt 0:01:22]} 1/2-1/2

[Event "FIDE WSTC Open 65 2025"]
[Site "Prague"]
[Date "2025.02.17"]
[Round "1.31"]
[White "Baker, Chris W"]
[Black "Mortensen, Steen Juul"]
[Result "1-0"]
[Annotator "ChessBase"]
[ECO "E63"]
[WhiteElo "2150"]
[BlackElo "1903"]
[PlyCount "71"]
[EventDate "2025.02.17"]
[EventType "team-tourn"]
[EventCountry "CZE"]
[SourceTitle "playchess.com"]
[Source "ChessBase"]
[SourceQuality "1"]
[TimeControl "40/5400+30:1800+30"]

1. d4 {[%emt 0:00:11]} Nf6 {[%emt 0:00:06]} 2. Nf3 {[%emt 0:00:42]} g6 {[%emt 0:00:18]} 3. c4 {[%emt 0:00:47]} Bg7 {[%emt 0:00:25]} 4. g3 {[%emt 0:00:45]} d6 {[%emt 0:00:35]} 5. Bg2 {[%emt 0:00:26]} O-O {[%emt 0:00:17]} 6. O-O {[%emt 0:00:25]} Nc6 {[%emt 0:00:45]} 7. Nc3 {[%emt 0:00:33]} a6 {[%emt 0:00:40]} 8. Re1 {[%emt 0:03:03]} Rb8 {[%emt 0:03:11]} 9. Rb1 {[%emt 0:02:38]} Na5 {[%emt 0:03:40]} 10. Nd2 {[%emt 0:08:01]} c5 {[%emt 0:03:28]} 11. e3 {[%emt 0:19:53]} Nd7 {[%emt 0:11:23]} 12. Ne2 {[%emt 0:03:58]} Qc7 {[%emt 0:08:39]} 13. b3 {[%emt 0:02:35]} b5 {[%emt 0:07:39]} 14. cxb5 {[%emt 0:01:54]} axb5 {[%emt 0:00:03]} 15. Qc2 {[%emt 0:05:07]} Nc6 {[%emt 0:03:48]} 16. b4 {[%emt 0:02:01]} c4 {[%emt 0:04:37]} 17. a4 {[%emt 0:06:15]} Ba6 {[%emt 0:03:37]} 18. Nc3 {[%emt 0:02:24]} Na7 {[%emt 0:05:42]} 19. axb5 {[%emt 0:02:09]} Nxb5 {[%emt 0:05:05]} 20. Nd5 {[%emt 0:01:08]} Qd8 {[%emt 0:00:28]} 21. Ra1 {[%emt 0:02:44]} Bb7 {[%emt 0:04:24]} 22. Qxc4 {[%emt 0:01:38]} e6 {[%emt 0:01:00]} 23. Qxb5 {[%emt 0:03:10]} Bxd5 {[%emt 0:00:22]} 24. Qa6 {[%emt 0:02:24]} Rb6 {[%emt 0:02:25]} 25. Qa5 {[%emt 0:00:30]} Bxg2 {[%emt 0:00:41]} 26. Kxg2 {[%emt 0:00:10]} d5 {[%emt 0:04:49]} 27. Nb3 {[%emt 0:04:02]} Qb8 {[%emt 0:04:59]} 28. Bd2 {[%emt 0:00:25]} Rb5 {[%emt 0:06:04]} 29. Qa4 {[%emt 0:01:16]} Rb7 {[%emt 0:02:46]} 30. Na5 {[%emt 0:02:09]} Rb5 {[%emt 0:02:42]} 31. Rec1 {[%emt 0:00:58]} e5 {[%emt 0:03:15]} 32. Nc6 {[%emt 0:04:21]} Qb7 {[%emt 0:00:33]} 33. Qa7 {[%emt 0:01:01]} Re8 {[%emt 0:03:44]} 34. Ra5 {[%emt 0:01:40]} Qxa7 {[%emt 0:01:37]} 35. Rxa7 {[%emt 0:00:27]} Nb6 {[%emt 0:01:54]} 36. Rb7 {[%emt 0:00:49]} 1-0

[Event "FIDE WSTC Open 65 2025"]
[Site "Prague"]
[Date "2025.02.17"]
[Round "1.32"]
[White "Andersson, Finn"]
[Black "Snape, Ian L"]
[Result "0-1"]
[Annotator "NA"]
[ECO "B48"]
[WhiteElo "1835"]
[BlackElo "2062"]
[PlyCount "72"]
[EventDate "2025.02.17"]
[EventType "team-tourn"]
[EventCountry "CZE"]
[SourceTitle "playchess.com"]
[Source "ChessBase"]
[SourceQuality "1"]
[TimeControl "40/5400+30:1800+30"]

1. e4 {[%emt 0:00:04]} c5 {[%emt 0:00:07]} 2. Ne2 {[%emt 0:00:08]} e6 {[%emt 0:00:17]} 3. d4 {[%emt 0:00:17]} cxd4 {[%emt 0:00:04]} 4. Nxd4 {[%emt 0:00:03]} Nc6 {[%emt 0:00:05]} 5. Nc3 {[%emt 0:02:33]} Qc7 {[%emt 0:00:07]} 6. Be3 {[%emt 0:03:09]} a6 {[%emt 0:00:07]} 7. a3 {[%emt 0:01:34]} Nf6 {[%emt 0:00:36]} 8. Bd3 {[%emt 0:05:28]} Nxd4 {[%emt 0:03:24]} 9. Bxd4 {[%emt 0:00:09]} Bc5 {[%emt 0:00:12]} 10. Bxc5 {[%emt 0:03:11]} Qxc5 {[%emt 0:00:04]} 11. Qe2 {[%emt 0:01:22]} d6 {[%emt 0:02:26]} 12. O-O {[%emt 0:04:19]} Bd7 {[%emt 0:01:17]} 13. Rae1 {[%emt 0:03:00]} Bc6 {[%emt 0:02:32]} 14. e5 {[%emt 0:09:49]} Qxe5 {[%emt 0:00:37]} 15. Qxe5 {[%emt 0:00:08]} dxe5 {[%emt 0:00:04]} 16. Rxe5 {[%emt 0:00:10]} O-O {[%emt 0:01:29]} 17. Rfe1 {[%emt 0:10:32]} Rfd8 {[%emt 0:01:38]} 18. b4 {[%emt 0:03:28]} Rd4 {[%emt 0:17:25]} 19. f3 {[%emt 0:04:00]} Nd7 {[%emt 0:03:11]} 20. R5e3 {[%emt 0:00:55]} Nb6 {[%emt 0:02:14]} 21. Kf2 {[%emt 0:09:11]} Nc4 {[%emt 0:06:55]} 22. Bxc4 {[%emt 0:01:31]} Rxc4 {[%emt 0:00:07]} 23. R1e2 {[%emt 0:01:42]} Rc8 {[%emt 0:05:44]} 24. Ke1 {[%emt 0:05:04]} Bxf3 {[%emt 0:01:38]} 25. Rxf3 {[%emt 0:01:01]} Rxc3 {[%emt 0:00:07]} 26. Kd1 {[%emt 0:06:27]} Kf8 {[%emt 0:03:30]} 27. Rd2 {[%emt 0:00:35]} Ke7 {[%emt 0:03:09]} 28. Rfd3 {[%emt 0:00:09]} Rxd3 {[%emt 0:00:53]} 29. Rxd3 {[%emt 0:01:08]} Rd8 {[%emt 0:00:06]} 30. Kd2 {[%emt 0:04:22]} Rxd3+ {[%emt 0:01:33]} 31. cxd3 {[%emt 0:00:07]} Kd6 {[%emt 0:00:21]} 32. d4 {[%emt 0:01:46]} Kd5 {[%emt 0:00:11]} 33. Kd3 {[%emt 0:03:59]} b5 {[%emt 0:00:06]} 34. Ke3 {[%emt 0:00:50]} f6 {[%emt 0:00:39]} 35. Kd3 {[%emt 0:00:37]} f5 {[%emt 0:00:44]} 36. Ke3 {[%emt 0:01:12]} Kc4 {[%emt 0:00:08]} 0-1

[Event "FIDE WSTC Open 65 2025"]
[Site "Prague"]
[Date "2025.02.17"]
[Round "1.33"]
[White "Chubar, Vladimir"]
[Black "Kyas, Juergen"]
[Result "1/2-1/2"]
[Annotator "ChessBase"]
[ECO "D03"]
[WhiteElo "1885"]
[BlackElo "2173"]
[PlyCount "42"]
[EventDate "2025.02.17"]
[EventType "team-tourn"]
[EventCountry "CZE"]
[SourceTitle "playchess.com"]
[Source "ChessBase"]
[SourceQuality "1"]
[TimeControl "40/5400+30:1800+30"]

1. d4 {[%emt 0:00:03]} Nf6 {[%emt 0:00:02]} 2. Nf3 {[%emt 0:00:13]} d5 {[%emt 0:00:09]} 3. Bg5 {[%emt 0:00:28]} Ne4 {[%emt 0:00:38]} 4. Bf4 {[%emt 0:00:33]} c5 {[%emt 0:00:13]} 5. e3 {[%emt 0:00:53]} Qb6 {[%emt 0:01:33]} 6. Qc1 {[%emt 0:01:35]} Nc6 {[%emt 0:00:37]} 7. c3 {[%emt 0:03:42]} f6 {[%emt 0:00:28]} 8. dxc5 {[%emt 0:01:53]} Qxc5 {[%emt 0:03:01]} 9. Nbd2 {[%emt 0:01:45]} e5 {[%emt 0:01:00]} 10. Bg3 {[%emt 0:05:11]} Be6 {[%emt 0:04:03]} 11. Bd3 {[%emt 0:05:52]} Nxd2 {[%emt 0:09:06]} 12. Nxd2 {[%emt 0:00:47]} Be7 {[%emt 0:02:43]} 13. O-O {[%emt 0:03:27]} O-O {[%emt 0:07:30]} 14. Qb1 {[%emt 0:06:52]} f5 {[%emt 0:06:46]} 15. h3 {[%emt 0:05:31]} h6 {[%emt 0:07:01]} 16. a3 {[%emt 0:15:13]} Rac8 {[%emt 0:03:29]} 17. Rc1 {[%emt 0:02:02]} f4 {[%emt 0:07:55]} 18. exf4 {[%emt 0:04:12]} exf4 {[%emt 0:00:01]} 19. Bh2 {[%emt 0:00:54]} Bh4 {[%emt 0:00:52]} 20. Rf1 {[%emt 0:01:17]} Rce8 {[%emt 0:08:20]} 21. Nf3 {[%emt 0:03:24]} Bg3 {[%emt 0:02:28]} 1/2-1/2